fUSD/lending_fUSD_20250716
["ID","MTS","AMOUNT","RATE_DAILY","PERIOD"]
[372425563,1752640245085,-460.0,0.00021917,2]
[372425565,1752640245100,-1433.87,0.00021917,2]
[372425567,1752640245109,-221.098143,0.00021917,2]
[372425569,1752640245119,-221.098143,0.00021917,2]
[372425571,1752640245129,-221.098143,0.00021917,2]
[372425573,1752640245138,-460.0,0.00021917,2]
[372425575,1752640245147,-221.098143,0.00021917,2]
[372425577,1752640245156,-154.332738,0.00021917,2]
[372425579,1752640245166,-221.098143,0.00021917,2]
[372425581,1752640245175,-221.098143,0.00021917,2]
[372425583,1752640245184,-221.098143,0.00021917,2]
[372425586,1752640245193,-1043.39,0.00021917,2]
[372425587,1752640245202,-221.098143,0.00021917,2]
[372425590,1752640245212,-609.61,0.00021917,2]
[372425592,1752640245221,-460.0,0.00021917,2]
[372425594,1752640245231,-221.098143,0.00021917,2]
[372425596,1752640245240,-221.098143,0.00021917,2]
[372425598,1752640245249,-221.098143,0.00021917,2]
[372425600,1752640245258,-460.60197169,0.00021917,2]
[372425602,1752640245267,-221.098143,0.00021917,2]
[372425603,1752640245276,-221.098143,0.00021917,2]
[372425605,1752640245286,-221.098143,0.00021917,2]
[372425608,1752640245295,-221.098143,0.00021917,2]
[372425609,1752640245305,-221.098143,0.00021917,2]
[372425612,1752640245324,-947.54,0.00021917,2]
[372425613,1752640245333,-460.0,0.00021917,2]
[372425615,1752640245343,-200.0,0.00021917,2]
[372425618,1752640245352,-460.0,0.00021917,2]
[372425619,1752640245361,-552.56,0.00021917,2]
[372425621,1752640245371,-851.49,0.00021917,2]
[372425623,1752640245383,-460.0,0.00021917,2]
[372425626,1752640245394,-460.0,0.00021917,2]
[372425628,1752640245404,-460.0,0.00021917,2]
[372425630,1752640245414,-250.0,0.00021917,2]
[372425632,1752640245425,-250.0,0.00021917,2]
[372425633,1752640245435,-1428.01,0.00021917,2]
[372425635,1752640245444,-460.0,0.00021917,2]
[372425637,1752640245453,-460.0,0.00021917,2]
[372425640,1752640245462,-595.32,0.00021917,2]
[372425641,1752640245472,-150.0,0.00021917,2]
[372425644,1752640245482,-617.8,0.00021917,2]
[372425646,1752640245492,-1636.27,0.00021917,2]
[372425648,1752640245501,-150.0,0.00021917,2]
[372425650,1752640245511,-460.0,0.00021917,2]
[372425652,1752640245520,-151.0,0.00021917,2]
[372425654,1752640245529,-151.0,0.00021917,2]
[372425656,1752640245540,-461.29629453,0.00021917,2]
[372425658,1752640245550,-460.0,0.00021917,2]
[372425660,1752640245560,-151.0,0.00021917,2]
[372425662,1752640245578,-151.0,0.00021917,2]
[372425663,1752640245592,-151.0,0.00021917,2]
[372425666,1752640245602,-460.0,0.00021917,2]
[372425668,1752640245612,-151.0,0.00021917,2]
[372425670,1752640245621,-460.0,0.00021917,2]
[372425672,1752640245630,-462.80200449,0.00021917,2]
[372425674,1752640245639,-460.0,0.00021917,2]
[372425676,1752640245648,-228.735487,0.00021917,2]
[372425678,1752640245658,-460.0,0.00021917,2]
[372425680,1752640245667,-1497.63,0.00021917,2]
[372425682,1752640245676,-460.0,0.00021917,2]
[372425684,1752640245685,-460.0,0.00021917,2]
[372425685,1752640245695,-910.75,0.00021917,2]
[372425687,1752640245705,-1004.91,0.00021917,2]
[372425690,1752640245715,-502.28,0.00021917,2]
[372425692,1752640245728,-963.04,0.00021917,2]
[372425694,1752640245737,-460.0,0.00021917,2]
[372425696,1752640245747,-460.0,0.00021917,2]
[372425698,1752640245756,-151.0,0.00021917,2]
[372425700,1752640245766,-215.992609,0.00021917,2]
[372425702,1752640245775,-460.0,0.00021917,2]
[372425704,1752640245785,-3605.76,0.00021917,2]
[372425706,1752640245794,-995.81,0.00021917,2]
[372425708,1752640245804,-460.0,0.00021917,2]
[372425710,1752640245813,-460.0,0.00021917,2]
[372425713,1752640245822,-460.0,0.00021917,2]
[372425716,1752640245831,-656.96,0.00021917,2]
[372425718,1752640245841,-460.0,0.00021917,2]
[372425720,1752640245850,-460.0,0.00021917,2]
[372425722,1752640245859,-460.0,0.00021917,2]
[372425724,1752640245869,-460.0,0.00021917,2]
[372425725,1752640245878,-460.0,0.00021917,2]
[372425726,1752640245887,-460.0,0.00021917,2]
[372425727,1752640245897,-500.0,0.00021917,2]
[372425728,1752640245906,-500.0,0.00021917,2]
[372425729,1752640245916,-500.0,0.00021917,2]
[372425730,1752640245925,-500.0,0.00021917,2]
[372425731,1752640245935,-500.0,0.00021917,2]
[372425732,1752640245944,-500.0,0.00021917,2]
[372425734,1752640245954,-498.89,0.00021917,2]
[372425736,1752640245963,-500.0,0.00021917,2]
[372425738,1752640245972,-460.0,0.00021917,2]
[372425740,1752640245981,-216.811869,0.00021917,2]
[372425742,1752640245991,-1937.14,0.00021917,2]
[372425744,1752640246000,-460.0,0.00021917,2]
[372425746,1752640246009,-460.0,0.00021917,2]
[372425748,1752640246020,-1421.68,0.00021917,2]
[372425750,1752640246031,-460.0,0.00021917,2]
[372425751,1752640246042,-460.0,0.00021917,2]
[372425753,1752640246051,-167.145397,0.00021917,2]
[372425756,1752640246062,-460.0,0.00021917,2]
[372425758,1752640246072,-460.0,0.00021917,2]
[372425760,1752640246081,-1728.83,0.00021917,2]
[372425762,1752640246091,-460.0,0.00021917,2]
[372425764,1752640246101,-460.0,0.00021917,2]
[372425766,1752640246111,-599.18,0.00021917,2]
[372425768,1752640246120,-460.0,0.00021917,2]
[372425770,1752640246129,-813.19,0.00021917,2]
[372425772,1752640246139,-3358.73,0.00021917,2]
[372425774,1752640246148,-276.47802,0.00021917,2]
[372425776,1752640246157,-2167.54,0.00021917,2]
[372425778,1752640246166,-460.0,0.00021917,2]
[372425780,1752640246176,-460.0,0.00021917,2]
[372425782,1752640246185,-460.0,0.00021917,2]
[372425784,1752640246194,-460.0,0.00021917,2]
[372425786,1752640246203,-1003.28,0.00021917,2]
[372425788,1752640246212,-460.0,0.00021917,2]
[372425790,1752640246222,-460.0,0.00021917,2]
[372425792,1752640246231,-460.0,0.00021917,2]
[372425794,1752640246240,-460.0,0.00021917,2]
[372425796,1752640246250,-460.0,0.00021917,2]
[372425798,1752640246260,-460.0,0.00021917,2]
[372425800,1752640246270,-2963.15,0.00021917,2]
[372425802,1752640246279,-460.0,0.00021917,2]
[372425804,1752640246290,-1017.24,0.00021917,2]
[372425806,1752640246299,-585.0,0.00021917,2]
[372425808,1752640246309,-460.0,0.00021917,2]
[372425810,1752640246319,-460.0,0.00021917,2]
[372425812,1752640246329,-460.0,0.00021917,2]
[372425814,1752640246338,-623.9,0.00021917,2]
[372425816,1752640246347,-1900.95,0.00021917,2]
[372425818,1752640246357,-460.0,0.00021917,2]
[372425820,1752640246366,-460.0,0.00021917,2]
[372425822,1752640246376,-460.0,0.00021917,2]
[372425824,1752640246385,-510.73,0.00021917,2]
[372425826,1752640246395,-460.0,0.00021917,2]
[372425828,1752640246405,-460.0,0.00021917,2]
[372425830,1752640246414,-460.0,0.00021917,2]
[372425832,1752640246423,-460.0,0.00021917,2]
[372425834,1752640246433,-1577.31,0.00021917,2]
[372425836,1752640246442,-460.0,0.00021917,2]
[372425838,1752640246451,-814.78,0.00021917,2]
[372425840,1752640246461,-460.0,0.00021917,2]
[372425861,1752640246646,-800.86,0.00021917,2]
[372425863,1752640246657,-512.09,0.00021917,2]
[372425865,1752640246667,-629.46,0.00021917,2]
[372425867,1752640246676,-460.0,0.00021917,2]
[372425869,1752640246685,-863.07,0.00021917,2]
[372425871,1752640246696,-1064.85,0.00021917,2]
[372425873,1752640246706,-460.0,0.00021917,2]
[372425875,1752640246715,-460.0,0.00021917,2]
[372425877,1752640246725,-460.0,0.00021917,2]
[372425879,1752640246734,-2482.13,0.00021917,2]
[372425882,1752640246744,-821.63,0.00021917,2]
[372425884,1752640246754,-460.0,0.00021917,2]
[372425886,1752640246763,-473.95702472,0.00021917,2]
[372425888,1752640246772,-1104.71,0.00021917,2]
[372425890,1752640246781,-631.14,0.00021917,2]
[372425892,1752640246791,-474.17,0.00021917,2]
[372425893,1752640246800,-798.63,0.00021917,2]
[372425896,1752640246810,-1723.62,0.00021917,2]
[372425898,1752640246819,-460.0,0.00021917,2]
[372425900,1752640246829,-460.0,0.00021917,2]
[372425902,1752640246838,-619.57,0.00021917,2]
[372425904,1752640246848,-3654.27,0.00021917,2]
[372425906,1752640246857,-460.0,0.00021917,2]
[372425908,1752640246866,-460.0,0.00021917,2]
[372425910,1752640246876,-642.73,0.00021917,2]
[372425912,1752640246885,-574.96,0.00021917,2]
[372425914,1752640246895,-460.0,0.00021917,2]
[372425916,1752640246904,-517.32,0.00021917,2]
[372425917,1752640246913,-460.0,0.00021917,2]
[372425920,1752640246923,-1274.28,0.00021917,2]
[372425922,1752640246932,-151.0,0.00021917,2]
[372425923,1752640246942,-151.0,0.00021917,2]
[372425926,1752640246951,-174.05568958,0.00021917,2]
[372425928,1752640246961,-696.76,0.00021917,2]
[372425930,1752640246970,-460.0,0.00021917,2]
[372425932,1752640246980,-2902.61,0.00021917,2]
[372425934,1752640246989,-500.0,0.00021917,2]
[372425936,1752640246999,-500.0,0.00021917,2]
[372425938,1752640247008,-500.0,0.00021917,2]
[372425940,1752640247017,-495.38001186,0.00021917,2]
[372425942,1752640247031,-500.0,0.00021917,2]
[372425944,1752640247041,-500.0,0.00021917,2]
[372425946,1752640247050,-2185.37,0.00021917,2]
[372425948,1752640247059,-500.0,0.00021917,2]
[372425950,1752640247069,-500.0,0.00021917,2]
[372425952,1752640247078,-460.0,0.00021917,2]
[372425954,1752640247087,-460.0,0.00021917,2]
[372425956,1752640247096,-460.0,0.00021917,2]
[372425958,1752640247111,-461.81591101,0.00021917,2]
[372425960,1752640247121,-460.0,0.00021917,2]
[372425962,1752640247130,-460.0,0.00021917,2]
[372425964,1752640247140,-1115.03,0.00021917,2]
[372425966,1752640247149,-460.0,0.00021917,2]
[372425968,1752640247159,-460.0,0.00021917,2]
[372425970,1752640247168,-460.0,0.00021917,2]
[372425971,1752640247177,-3058.87,0.00021917,2]
[372425973,1752640247187,-460.0,0.00021917,2]
[372425975,1752640247196,-460.0,0.00021917,2]
[372425977,1752640247207,-460.0,0.00021917,2]
[372425980,1752640247217,-460.0,0.00021917,2]
[372425981,1752640247226,-460.0,0.00021917,2]
[372425984,1752640247236,-460.0,0.00021917,2]
[372425985,1752640247245,-589.63,0.00021917,2]
[372425987,1752640247254,-477.06,0.00021917,2]
[372425989,1752640247264,-460.0,0.00021917,2]
[372425992,1752640247274,-460.0,0.00021917,2]
[372425994,1752640247283,-1784.18,0.00021917,2]
[372425996,1752640247295,-460.0,0.00021917,2]
[372425998,1752640247304,-858.43,0.00021917,2]
[372426000,1752640247313,-721.01,0.00021917,2]
[372426002,1752640247322,-460.0,0.00021917,2]
[372426003,1752640247331,-460.0,0.00021917,2]
[372426004,1752640247341,-1187.55,0.00021917,2]
[372426005,1752640247350,-2717.1,0.00021917,2]
[372426006,1752640247359,-460.0,0.00021917,2]
[372426007,1752640247369,-1446.43,0.00021917,2]
[372426008,1752640247378,-3350.21,0.00021917,2]
[372426009,1752640247388,-655.27,0.00021917,2]
[372426010,1752640247397,-460.0,0.00021917,2]
[372426011,1752640247406,-1758.8,0.00021917,2]
[372426012,1752640247416,-460.0,0.00021917,2]
[372426013,1752640247425,-460.0,0.00021917,2]
[372426014,1752640247435,-460.0,0.00021917,2]
[372426016,1752640247445,-508.14680815,0.00021917,2]
[372426018,1752640247454,-1357.24,0.00021917,2]
[372426019,1752640247463,-460.0,0.00021917,2]
[372426021,1752640247472,-460.0,0.00021917,2]
[372426023,1752640247482,-2268.87,0.00021917,2]
[372426025,1752640247492,-460.0,0.00021917,2]
[372426027,1752640247501,-460.0,0.00021917,2]
[372426029,1752640247511,-460.0,0.00021917,2]
[372426031,1752640247520,-2940.56,0.00021917,2]
[372426033,1752640247530,-460.0,0.00021917,2]
[372426034,1752640247540,-154.989823,0.00021917,2]
[372426035,1752640247549,-1416.1,0.00021917,2]
[372426036,1752640247559,-497.88679973,0.00021917,2]
[372426037,1752640247568,-460.0,0.00021917,2]
[372426038,1752640247578,-460.0,0.00021917,2]
[372426039,1752640247590,-460.0,0.00021917,2]
[372426040,1752640247599,-460.0,0.00021917,2]
[372426041,1752640247609,-460.0,0.00021917,2]
[372426042,1752640247618,-460.0,0.00021917,2]
[372426043,1752640247628,-460.0,0.00021917,2]
[372426044,1752640247637,-460.0,0.00021917,2]
[372426045,1752640247647,-252.24456507,0.00021917,2]
[372426046,1752640247656,-460.0,0.00021917,2]
[372426047,1752640247666,-1436.43,0.00021917,2]
[372426048,1752640247675,-636.39,0.00021917,2]
[372426049,1752640247685,-822.76,0.00021917,2]
[372426050,1752640247694,-2298.52,0.00021917,2]
[372426051,1752640247703,-1257.95,0.00021917,2]
[372426052,1752640247713,-3008.48,0.00021917,2]
[372426053,1752640247723,-2298.52,0.00021917,2]
[372426054,1752640247733,-2298.52,0.00021917,2]
[372426055,1752640247743,-460.0,0.00021917,2]
[372426056,1752640247752,-2298.52,0.00021917,2]
[372426057,1752640247761,-460.0,0.00021917,2]
[372426058,1752640247771,-2298.52,0.00021917,2]
[372426059,1752640247780,-2298.52,0.00021917,2]
[372426060,1752640247792,-2298.52,0.00021917,2]
[372426061,1752640247801,-2566.08,0.00021917,2]
[372426062,1752640247811,-1118.43,0.00021917,2]
[372426063,1752640247820,-2298.52,0.00021917,2]
[372426064,1752640247829,-460.0,0.00021917,2]
[372426065,1752640247839,-2298.52,0.00021917,2]
[372426066,1752640247848,-461.05821104,0.00021917,2]
[372426067,1752640247858,-2298.52,0.00021917,2]
[372426070,1752640247868,-2298.52,0.00021917,2]
[372426071,1752640247877,-2298.52,0.00021917,2]
[372426073,1752640247886,-460.0,0.00021917,2]
[372426075,1752640247896,-460.0,0.00021917,2]
[372426077,1752640247905,-461.96,0.00021917,2]
[372426078,1752640247915,-460.0,0.00021917,2]
[372426079,1752640247925,-765.99,0.00021917,2]
[372426080,1752640247935,-460.0,0.00021917,2]
[372426081,1752640247945,-640.45,0.00021917,2]
[372426082,1752640247954,-460.0,0.00021917,2]
[372426083,1752640247965,-3837.62,0.00021917,2]
[372426084,1752640247974,-460.0,0.00021917,2]
[372426085,1752640247984,-1619.99,0.00021917,2]
[372426086,1752640247993,-504.53,0.00021917,2]
[372426087,1752640248003,-1866.97,0.00021917,2]
[372426088,1752640248013,-500.0,0.00021917,2]
[372426089,1752640248025,-2706.34,0.00021917,2]
[372426090,1752640248034,-500.0,0.00021917,2]
[372426093,1752640248045,-1563.72,0.00021917,2]
[372426095,1752640248055,-636.73,0.00021917,2]
[372426096,1752640248065,-460.0,0.00021917,2]
[372426099,1752640248074,-500.0,0.00021917,2]
[372426101,1752640248083,-500.0,0.00021917,2]
[372426103,1752640248094,-460.0,0.00021917,2]
[372426105,1752640248104,-500.0,0.00021917,2]
[372426107,1752640248116,-500.0,0.00021917,2]
[372426108,1752640248126,-500.0,0.00021917,2]
[372426110,1752640248136,-500.0,0.00021917,2]
[372426112,1752640248145,-500.0,0.00021917,2]
[372426115,1752640248155,-500.0,0.00021917,2]
[372426116,1752640248165,-460.0,0.00021917,2]
[372426119,1752640248175,-526.81281312,0.00021917,2]
[372426121,1752640248184,-1447.14,0.00021917,2]
[372426123,1752640248194,-1435.06,0.00021917,2]
[372426125,1752640248204,-460.0,0.00021917,2]
[372426127,1752640248213,-500.0,0.00021917,2]
[372426129,1752640248223,-500.0,0.00021917,2]
[372426131,1752640248232,-151.0,0.00021917,2]
[372426133,1752640248242,-500.0,0.00021917,2]
[372426134,1752640248251,-151.0,0.00021917,2]
[372426136,1752640248261,-500.0,0.00021917,2]
[372426138,1752640248271,-500.0,0.00021917,2]
[372426140,1752640248280,-460.0,0.00021917,2]
[372426142,1752640248291,-630.96,0.00021917,2]
[372426144,1752640248300,-151.0,0.00021917,2]
[372426145,1752640248310,-500.0,0.00021917,2]
[372426146,1752640248320,-500.0,0.00021917,2]
[372426147,1752640248329,-460.0,0.00021917,2]
[372426148,1752640248339,-151.0,0.00021917,2]
[372426149,1752640248348,-530.97,0.00021917,2]
[372426150,1752640248358,-151.0,0.00021917,2]
[372426151,1752640248368,-460.0,0.00021917,2]
[372426152,1752640248377,-151.0,0.00021917,2]
[372426153,1752640248387,-460.0,0.00021917,2]
[372426154,1752640248396,-460.0,0.00021917,2]
[372426155,1752640248405,-151.0,0.00021917,2]
[372426156,1752640248415,-584.04,0.00021917,2]
[372426157,1752640248424,-151.0,0.00021917,2]
[372426158,1752640248434,-2929.44,0.00021917,2]
[372426159,1752640248443,-527.06,0.00021917,2]
[372426160,1752640248453,-3518.6,0.00021917,2]
[372426161,1752640248463,-151.0,0.00021917,2]
[372426162,1752640248472,-151.0,0.00021917,2]
[372426163,1752640248485,-151.0,0.00021917,2]
[372426164,1752640248496,-151.0,0.00021917,2]
[372426165,1752640248506,-385.561155,0.00021917,2]
[372426166,1752640248517,-460.0,0.00021917,2]
[372426167,1752640248527,-151.0,0.00021917,2]
[372426168,1752640248538,-151.0,0.00021917,2]
[372426169,1752640248548,-151.0,0.00021917,2]
[372426170,1752640248557,-413.77548305,0.00021917,2]
[372426171,1752640248566,-151.0,0.00021917,2]
[372426172,1752640248576,-460.0,0.00021917,2]
[372426173,1752640248586,-460.0,0.00021917,2]
[372426174,1752640248595,-151.0,0.00021917,2]
[372426175,1752640248605,-3099.11,0.00021917,2]
[372426176,1752640248614,-460.0,0.00021917,2]
[372426177,1752640248624,-151.0,0.00021917,2]
[372426178,1752640248633,-1131.36,0.00021917,2]
[372426179,1752640248642,-171.561519,0.00021917,2]
[372426180,1752640248651,-460.0,0.00021917,2]
[372426181,1752640248661,-460.0,0.00021917,2]
[372426182,1752640248670,-645.07,0.00021917,2]
[372426183,1752640248680,-460.0,0.00021917,2]
[372426184,1752640248690,-460.0,0.00021917,2]
[372426185,1752640248699,-460.0,0.00021917,2]
[372426186,1752640248709,-151.0,0.00021917,2]
[372426187,1752640248719,-460.0,0.00021917,2]
[372426188,1752640248729,-460.0,0.00021917,2]
[372426189,1752640248739,-1614.72,0.00021917,2]
[372426190,1752640248748,-460.0,0.00021917,2]
[372426191,1752640248758,-151.0,0.00021917,2]
[372426192,1752640248768,-819.81,0.00021917,2]
[372426193,1752640248778,-540.91,0.00021917,2]
[372426194,1752640248789,-460.0,0.00021917,2]
[372426195,1752640248799,-1302.88,0.00021917,2]
[372426196,1752640248808,-151.0,0.00021917,2]
[372426197,1752640249180,-151.0,0.00021917,2]
[372426198,1752640249213,-151.0,0.00021917,2]
[372426199,1752640249222,-603.92877468,0.00021917,2]
[372426200,1752640249232,-471.56,0.00021917,2]
[372426201,1752640249241,-865.97,0.00021917,2]
[372426202,1752640249251,-174.470808,0.00021917,2]
[372426203,1752640249260,-463.21,0.00021917,2]
[372426204,1752640249269,-2003.17,0.00021917,2]
[372426205,1752640249280,-460.0,0.00021917,2]
[372426206,1752640249291,-460.0,0.00021917,2]
[372426207,1752640249301,-1087.66,0.00021917,2]
[372426208,1752640249311,-460.0,0.00021917,2]
[372426209,1752640249321,-527.81,0.00021917,2]
[372426210,1752640249330,-1502.97,0.00021917,2]
[372426211,1752640249340,-527.81,0.00021917,2]
[372426212,1752640249349,-527.81,0.00021917,2]
[372426213,1752640249358,-460.0,0.00021917,2]
[372426214,1752640249368,-527.81,0.00021917,2]
[372426215,1752640249377,-527.81,0.00021917,2]
[372426216,1752640249386,-527.81,0.00021917,2]
[372426217,1752640249396,-527.81,0.00021917,2]
[372426218,1752640249405,-460.0,0.00021917,2]
[372426219,1752640249414,-1053.99,0.00021917,2]
[372426220,1752640249423,-1281.14,0.00021917,2]
[372426221,1752640249432,-460.0,0.00021917,2]
[372426222,1752640249442,-1527.7,0.00021917,2]
[372426223,1752640249452,-460.0,0.00021917,2]
[372426224,1752640249461,-460.0,0.00021917,2]
[372426225,1752640249470,-1760.92,0.00021917,2]
[372426226,1752640249480,-2741.76,0.00021917,2]
[372426227,1752640249489,-746.34,0.00021917,2]
[372426228,1752640249499,-1470.69,0.00021917,2]
[372426229,1752640249508,-460.0,0.00021917,2]
[372426230,1752640249517,-151.0,0.00021917,2]
[372426231,1752640249526,-460.0,0.00021917,2]
[372426232,1752640249536,-151.0,0.00021917,2]
[372426233,1752640249547,-460.0,0.00021917,2]
[372426234,1752640249556,-2215.17,0.00021917,2]
[372426235,1752640249565,-471.45,0.00021917,2]
[372426236,1752640249575,-2453.94,0.00021917,2]
[372426237,1752640249587,-2081.41,0.00021917,2]
[372426238,1752640249598,-460.0,0.00021917,2]
[372426239,1752640249609,-460.0,0.00021917,2]
[372426240,1752640249619,-460.0,0.00021917,2]
[372426241,1752640249632,-601.17,0.00021917,2]
[372426242,1752640249644,-758.63,0.00021917,2]
[372426243,1752640249654,-2554.77,0.00021917,2]
[372426244,1752640249664,-460.0,0.00021917,2]
[372426245,1752640249673,-3662.71,0.00021917,2]
[372426246,1752640249682,-618.45,0.00021917,2]
[372426247,1752640249692,-852.72,0.00021917,2]
[372426248,1752640249701,-617.36,0.00021917,2]
[372426249,1752640249710,-460.0,0.00021917,2]
[372426250,1752640249720,-460.0,0.00021917,2]
[372426251,1752640249729,-460.0,0.00021917,2]
[372426252,1752640249739,-460.0,0.00021917,2]
[372426253,1752640249748,-1480.66,0.00021917,2]
[372426254,1752640249757,-460.0,0.00021917,2]
[372426255,1752640249767,-460.0,0.00021917,2]
[372426256,1752640249777,-460.0,0.00021917,2]
[372426257,1752640249788,-1014.11,0.00021917,2]
[372426258,1752640249797,-3012.82,0.00021917,2]
[372426259,1752640249807,-460.0,0.00021917,2]
[372426260,1752640249817,-887.39,0.00021917,2]
[372426261,1752640249827,-460.0,0.00021917,2]
[372426262,1752640249837,-460.0,0.00021917,2]
[372426263,1752640249847,-4387.85,0.00021917,2]
[372426264,1752640249856,-855.52,0.00021917,2]
[372426265,1752640249866,-468.23436012,0.00021917,2]
[372426266,1752640249876,-460.0,0.00021917,2]
[372426267,1752640249886,-1005.89,0.00021917,2]
[372426268,1752640249897,-460.0,0.00021917,2]
[372426269,1752640249907,-1965.16,0.00021917,2]
[372426270,1752640249917,-460.0,0.00021917,2]
[372426271,1752640249927,-151.0,0.00021917,2]
[372426272,1752640249937,-460.0,0.00021917,2]
[372426273,1752640249946,-460.0,0.00021917,2]
[372426274,1752640249955,-500.0,0.00021917,2]
[372426275,1752640249965,-500.0,0.00021917,2]
[372426276,1752640249974,-500.0,0.00021917,2]
[372426277,1752640249984,-460.0,0.00021917,2]
[372426278,1752640249993,-500.0,0.00021917,2]
[372426279,1752640250003,-460.0,0.00021917,2]
[372426280,1752640250014,-492.33791323,0.00021917,2]
[372426281,1752640250026,-500.0,0.00021917,2]
[372426282,1752640250038,-500.0,0.00021917,2]
[372426283,1752640250048,-500.0,0.00021917,2]
[372426284,1752640250057,-3232.91,0.00021917,2]
[372426285,1752640250067,-500.0,0.00021917,2]
[372426286,1752640250077,-500.0,0.00021917,2]
[372426287,1752640250088,-500.0,0.00021917,2]
[372426288,1752640250098,-500.0,0.00021917,2]
[372426289,1752640250110,-548.76,0.00021917,2]
[372426290,1752640250120,-828.49,0.00021917,2]
[372426291,1752640250130,-500.0,0.00021917,2]
[372426292,1752640250142,-460.0,0.00021917,2]
[372426293,1752640250151,-460.0,0.00021917,2]
[372426294,1752640250163,-2513.72,0.00021917,2]
[372426295,1752640250172,-460.0,0.00021917,2]
[372426296,1752640250183,-1299.84,0.00021917,2]
[372426297,1752640250193,-1476.4,0.00021917,2]
[372426298,1752640250203,-460.0,0.00021917,2]
[372426299,1752640250212,-544.98123664,0.00021917,2]
[372426300,1752640250222,-459.9517779,0.00021917,2]
[372426301,1752640250231,-631.22,0.00021917,2]
[372426302,1752640250240,-153.176439,0.00021917,2]
[372426303,1752640250250,-460.0,0.00021917,2]
[372426304,1752640250259,-460.0,0.00021917,2]
[372426305,1752640250268,-592.73437029,0.00021917,2]
[372426306,1752640250278,-1069.37,0.00021917,2]
[372426307,1752640250288,-460.0,0.00021917,2]
[372426308,1752640250298,-1018.22,0.00021917,2]
[372426309,1752640250308,-460.0,0.00021917,2]
[372426310,1752640250317,-460.0,0.00021917,2]
[372426311,1752640250327,-915.44,0.00021917,2]
[372426312,1752640250338,-460.0,0.00021917,2]
[372426313,1752640250349,-908.66,0.00021917,2]
[372426314,1752640250360,-3172.25,0.00021917,2]
[372426315,1752640250372,-1026.63,0.00021917,2]
[372426316,1752640250381,-551.73,0.00021917,2]
[372426317,1752640250390,-171.76906243,0.00021917,2]
[372426318,1752640250401,-460.0,0.00021917,2]
[372426319,1752640250412,-460.0,0.00021917,2]
[372426320,1752640250422,-481.09,0.00021917,2]
[372426321,1752640250432,-460.0,0.00021917,2]
[372426322,1752640250441,-460.0,0.00021917,2]
[372426323,1752640250451,-1398.36,0.00021917,2]
[372426324,1752640250460,-1283.48,0.00021917,2]
[372426325,1752640250470,-460.0,0.00021917,2]
[372426326,1752640250479,-460.0,0.00021917,2]
[372426327,1752640250489,-493.28762496,0.00021917,2]
[372426328,1752640250499,-460.0,0.00021917,2]
[372426329,1752640250509,-634.29,0.00021917,2]
[372426330,1752640250520,-3683.45,0.00021917,2]